[Event "December 12 Late 2023"]
[Site "https://www.chess.com"]
[Date "2023.12.12"]
[Round "7"]
[White "Haszon, David"]
[Black "Curtis, John"]
[Result "1-0"]
[Board "107"]
[TimeControl "180+1"]
[WhiteFideId "733610"]
[BlackFideId "3200256"]
[WhiteElo "2385"]
[BlackElo "2214"]
[WhiteTeam "HUN"]
[BlackTeam "AUS"]
[WhiteClock "0:01:22"]
[BlackClock "0:00:00"]

1. d4 {[%clk 0:03:00]}  Nf6 {[%clk 0:02:59]} 2. Bf4 {[%clk 0:03:00]}  d6 {[%clk 0:02:58]} 3. Nc3 {[%clk 0:03:00]}  Nbd7 {[%clk 0:02:57]} 4. Nf3 {[%clk 0:02:58]}  g6 {[%clk 0:02:55]} 5. Qd2 {[%clk 0:02:58]}  h6 {[%clk 0:02:53]} 6. O-O-O {[%clk 0:02:57]}  g5 {[%clk 0:02:49]} 7. Bg3 {[%clk 0:02:56]}  Nh5 {[%clk 0:02:46]} 8. e4 {[%clk 0:02:54]}  Bg7 {[%clk 0:02:34]} 9. e5 {[%clk 0:02:37]}  Nxg3 {[%clk 0:02:32]} 10. hxg3 {[%clk 0:02:38]}  e6 {[%clk 0:02:16]} 11. exd6 {[%clk 0:02:20]}  cxd6 {[%clk 0:02:16]} 12. Ne4 {[%clk 0:02:20]}  Nf6 {[%clk 0:02:08]} 13. Bd3 {[%clk 0:02:17]}  Nxe4 {[%clk 0:02:07]} 14. Bxe4 {[%clk 0:02:18]}  d5 {[%clk 0:02:07]} 15. Bd3 {[%clk 0:02:18]}  Bd7 {[%clk 0:02:04]} 16. Ne5 {[%clk 0:02:13]}  Qb6 {[%clk 0:01:21]} 17. c3 {[%clk 0:02:00]}  Ba4 {[%clk 0:01:08]} 18. Rde1 {[%clk 0:01:55]}  Bb5 {[%clk 0:00:45]} 19. f4 {[%clk 0:01:49]}  Bxe5 {[%clk 0:00:38]} 20. Rxe5 {[%clk 0:01:49]}  gxf4 {[%clk 0:00:29]} 21. gxf4 {[%clk 0:01:48]}  O-O-O {[%clk 0:00:22]} 22. f5 {[%clk 0:01:45]}  Bxd3 {[%clk 0:00:19]} 23. Qxd3 {[%clk 0:01:46]}  Rdg8 {[%clk 0:00:19]} 24. Qh3 {[%clk 0:01:42]}  Kb8 {[%clk 0:00:17]} 25. fxe6 {[%clk 0:01:42]}  fxe6 {[%clk 0:00:16]} 26. Rhe1 {[%clk 0:01:38]}  Qc7 {[%clk 0:00:14]} 27. Rxe6 {[%clk 0:01:36]}  a6 {[%clk 0:00:14]} 28. Kb1 {[%clk 0:01:27]}  Qh7+ {[%clk 0:00:08]} 29. Ka1 {[%clk 0:01:26]}  Rf8 {[%clk 0:00:00]} 30. Qg3+ {[%clk 0:01:22]} 1-0

[Event "December 12 Late 2023"]
[Site "https://www.chess.com"]
[Date "2023.12.12"]
[Round "7"]
[White "Storn, Justin"]
[Black "Tokat, Nehir"]
[Result "1-0"]
[Board "108"]
[TimeControl "180+1"]
[WhiteFideId "30922720"]
[BlackFideId "34557555"]
[WhiteElo "2361"]
[BlackElo "2183"]
[WhiteTeam "USA"]
[BlackTeam "TUR"]
[WhiteClock "0:01:21"]
[BlackClock "0:00:30"]

1. e4 {[%clk 0:03:00]}  c5 {[%clk 0:02:59]} 2. Nc3 {[%clk 0:03:00]}  g6 {[%clk 0:02:57]} 3. d4 {[%clk 0:02:58]}  cxd4 {[%clk 0:02:57]} 4. Qxd4 {[%clk 0:02:59]}  Nf6 {[%clk 0:02:56]} 5. Qd2 {[%clk 0:02:54]}  Nc6 {[%clk 0:02:56]} 6. b3 {[%clk 0:02:54]}  Bg7 {[%clk 0:02:56]} 7. f3 {[%clk 0:02:54]}  O-O {[%clk 0:02:56]} 8. Bb2 {[%clk 0:02:54]}  b6 {[%clk 0:02:52]} 9. O-O-O {[%clk 0:02:54]}  a6 {[%clk 0:02:50]} 10. g4 {[%clk 0:02:50]}  b5 {[%clk 0:02:49]} 11. h4 {[%clk 0:02:50]}  b4 {[%clk 0:02:50]} 12. Nd5 {[%clk 0:02:49]}  Qa5 {[%clk 0:02:31]} 13. Nxf6+ {[%clk 0:02:30]}  exf6 {[%clk 0:02:32]} 14. Kb1 {[%clk 0:02:29]}  Qb6 {[%clk 0:02:22]} 15. h5 {[%clk 0:02:20]}  g5 {[%clk 0:02:11]} 16. h6 {[%clk 0:02:08]}  Bh8 {[%clk 0:02:10]} 17. Bc4 {[%clk 0:02:02]}  Qc5 {[%clk 0:02:01]} 18. Bd5 {[%clk 0:01:58]}  a5 {[%clk 0:01:50]} 19. Rh5 {[%clk 0:01:56]}  Qe7 {[%clk 0:01:41]} 20. Nh3 {[%clk 0:01:54]}  Rd8 {[%clk 0:00:55]} 21. Nxg5 {[%clk 0:01:40]}  fxg5 {[%clk 0:00:46]} 22. Rxg5+ {[%clk 0:01:37]}  Kf8 {[%clk 0:00:45]} 23. Bxh8 {[%clk 0:01:37]}  Rb8 {[%clk 0:00:30]} 24. Bxc6 {[%clk 0:01:21]} 1-0

[Event "December 12 Late 2023"]
[Site "https://www.chess.com"]
[Date "2023.12.12"]
[Round "7"]
[White "Floresvillar Gonzalez, Luis Migu"]
[Black "Munoz Sanchez, Miguel"]
[Result "1/2-1/2"]
[Board "119"]
[TimeControl "180+1"]
[WhiteFideId "5100542"]
[BlackFideId "3600734"]
[WhiteElo "2216"]
[BlackElo "2332"]
[WhiteTeam "MEX"]
[BlackTeam "ECU"]
[WhiteClock "0:00:02"]
[BlackClock "0:00:05"]

1. d4 {[%clk 0:03:00]}  Nf6 {[%clk 0:02:57]} 2. c3 {[%clk 0:03:00]}  g6 {[%clk 0:02:57]} 3. Bg5 {[%clk 0:03:00]}  Bg7 {[%clk 0:02:54]} 4. Nd2 {[%clk 0:02:59]}  d5 {[%clk 0:02:54]} 5. e3 {[%clk 0:02:58]}  O-O {[%clk 0:02:54]} 6. Bd3 {[%clk 0:02:58]}  c5 {[%clk 0:02:54]} 7. Ngf3 {[%clk 0:02:57]}  Nc6 {[%clk 0:02:53]} 8. Qe2 {[%clk 0:02:52]}  h6 {[%clk 0:02:52]} 9. Bf4 {[%clk 0:02:48]}  Re8 {[%clk 0:02:52]} 10. Ne5 {[%clk 0:02:46]}  Nd7 {[%clk 0:02:44]} 11. Nxd7 {[%clk 0:02:33]}  Bxd7 {[%clk 0:02:39]} 12. dxc5 {[%clk 0:02:33]}  e5 {[%clk 0:02:38]} 13. Bg3 {[%clk 0:02:32]}  Qe7 {[%clk 0:02:00]} 14. b4 {[%clk 0:02:29]}  a5 {[%clk 0:02:00]} 15. b5 {[%clk 0:02:20]}  Nd8 {[%clk 0:01:56]} 16. c6 {[%clk 0:02:16]}  bxc6 {[%clk 0:01:55]} 17. bxc6 {[%clk 0:02:16]}  Bxc6 {[%clk 0:01:55]} 18. O-O {[%clk 0:02:15]}  e4 {[%clk 0:01:54]} 19. Bb5 {[%clk 0:02:12]}  Qc5 {[%clk 0:01:46]} 20. Bxc6 {[%clk 0:02:09]}  Nxc6 {[%clk 0:01:46]} 21. Rac1 {[%clk 0:02:09]}  Ne5 {[%clk 0:01:43]} 22. Bxe5 {[%clk 0:02:06]}  Bxe5 {[%clk 0:01:44]} 23. Nb3 {[%clk 0:02:06]}  Qc7 {[%clk 0:01:33]} 24. Nd4 {[%clk 0:02:05]}  Bxh2+ {[%clk 0:01:27]} 25. Kh1 {[%clk 0:02:04]}  Re5 {[%clk 0:01:09]} 26. g3 {[%clk 0:01:55]}  Rh5 {[%clk 0:01:08]} 27. Kg2 {[%clk 0:01:55]}  Qd7 {[%clk 0:01:05]} 28. g4 {[%clk 0:01:35]}  Rh4 {[%clk 0:01:04]} 29. f3 {[%clk 0:01:29]}  exf3+ {[%clk 0:00:32]} 30. Qxf3 {[%clk 0:00:57]}  Be5 {[%clk 0:00:31]} 31. Rh1 {[%clk 0:00:49]}  Rxg4+ {[%clk 0:00:30]} 32. Kf2 {[%clk 0:00:49]}  h5 {[%clk 0:00:27]} 33. Rcg1 {[%clk 0:00:47]}  Rxg1 {[%clk 0:00:23]} 34. Rxg1 {[%clk 0:00:46]}  Rb8 {[%clk 0:00:17]} 35. Qxh5 {[%clk 0:00:29]}  Rb2+ {[%clk 0:00:17]} 36. Kf3 {[%clk 0:00:29]}  Bg7 {[%clk 0:00:11]} 37. Qg4 {[%clk 0:00:22]}  Qxg4+ {[%clk 0:00:09]} 38. Rxg4 {[%clk 0:00:19]}  Rxa2 {[%clk 0:00:07]} 39. Nc6 {[%clk 0:00:18]}  Ra3 {[%clk 0:00:07]} 40. Ne7+ {[%clk 0:00:16]}  Kf8 {[%clk 0:00:08]} 41. Nxd5 {[%clk 0:00:17]}  Bxc3 {[%clk 0:00:06]} 42. Nxc3 {[%clk 0:00:15]}  Rxc3 {[%clk 0:00:07]} 43. Ra4 {[%clk 0:00:13]}  Rc5 {[%clk 0:00:08]} 44. e4 {[%clk 0:00:13]}  Ke7 {[%clk 0:00:08]} 45. Kf4 {[%clk 0:00:13]}  Ke6 {[%clk 0:00:08]} 46. Rd4 {[%clk 0:00:10]}  f6 {[%clk 0:00:08]} 47. Rd8 {[%clk 0:00:09]}  g5+ {[%clk 0:00:07]} 48. Kg4 {[%clk 0:00:07]}  Rb5 {[%clk 0:00:08]} 49. Re8+ {[%clk 0:00:07]}  Kf7 {[%clk 0:00:08]} 50. Ra8 {[%clk 0:00:06]}  Rb4 {[%clk 0:00:06]} 51. Kf5 {[%clk 0:00:05]}  Rb5+ {[%clk 0:00:06]} 52. Kg4 {[%clk 0:00:04]}  Rb4 {[%clk 0:00:05]} 53. Kf5 {[%clk 0:00:03]}  Rb5+ {[%clk 0:00:05]} 54. Kg4 {[%clk 0:00:02]} 1/2-1/2

[Event "December 12 Late 2023"]
[Site "https://www.chess.com"]
[Date "2023.12.12"]
[Round "7"]
[White "ogpin"]
[Black "Mazzilli, Piero"]
[Result "1-0"]
[Board "121"]
[TimeControl "180+1"]
[BlackFideId "807087"]
[WhiteElo "2148"]
[BlackElo "2305"]
[BlackTeam "ITA"]
[WhiteClock "0:00:19"]
[BlackClock "0:00:08"]

1. e4 {[%clk 0:03:00]}  c5 {[%clk 0:03:00]} 2. Nf3 {[%clk 0:03:00]}  d6 {[%clk 0:03:00]} 3. Bb5+ {[%clk 0:03:00]}  Nd7 {[%clk 0:02:59]} 4. O-O {[%clk 0:03:00]}  a6 {[%clk 0:02:59]} 5. Bd3 {[%clk 0:02:57]}  Ngf6 {[%clk 0:02:55]} 6. Re1 {[%clk 0:02:57]}  Ne5 {[%clk 0:02:56]} 7. Nxe5 {[%clk 0:02:56]}  dxe5 {[%clk 0:02:55]} 8. b3 {[%clk 0:02:57]}  e6 {[%clk 0:02:45]} 9. Bb2 {[%clk 0:02:57]}  Qc7 {[%clk 0:02:44]} 10. a4 {[%clk 0:02:53]}  Be7 {[%clk 0:02:43]} 11. Na3 {[%clk 0:02:53]}  O-O {[%clk 0:02:42]} 12. Nc4 {[%clk 0:02:53]}  Nd7 {[%clk 0:02:43]} 13. Qh5 {[%clk 0:02:43]}  g6 {[%clk 0:02:36]} 14. Qh6 {[%clk 0:02:40]}  b6 {[%clk 0:02:29]} 15. f4 {[%clk 0:02:36]}  Bf6 {[%clk 0:02:07]} 16. fxe5 {[%clk 0:02:26]}  Nxe5 {[%clk 0:01:55]} 17. Bxe5 {[%clk 0:02:17]}  Bxe5 {[%clk 0:01:55]} 18. Nxe5 {[%clk 0:01:57]}  Qxe5 {[%clk 0:01:56]} 19. Rf1 {[%clk 0:01:45]}  Bb7 {[%clk 0:01:53]} 20. Rae1 {[%clk 0:01:46]}  Rad8 {[%clk 0:01:48]} 21. Rf3 {[%clk 0:01:37]}  Rd4 {[%clk 0:01:44]} 22. Rh3 {[%clk 0:01:35]}  Qg7 {[%clk 0:01:44]} 23. Qe3 {[%clk 0:01:27]}  e5 {[%clk 0:01:38]} 24. c3 {[%clk 0:01:24]}  Rd6 {[%clk 0:01:34]} 25. Bc4 {[%clk 0:01:20]}  Rfd8 {[%clk 0:01:16]} 26. Rf3 {[%clk 0:01:15]}  R6d7 {[%clk 0:00:50]} 27. Ref1 {[%clk 0:01:14]}  Rf8 {[%clk 0:00:50]} 28. d3 {[%clk 0:01:11]}  Kh8 {[%clk 0:00:47]} 29. Rf6 {[%clk 0:01:11]}  b5 {[%clk 0:00:33]} 30. axb5 {[%clk 0:01:09]}  axb5 {[%clk 0:00:34]} 31. Bxb5 {[%clk 0:01:08]}  Rc7 {[%clk 0:00:32]} 32. Bc4 {[%clk 0:01:08]}  Bc8 {[%clk 0:00:29]} 33. Qg5 {[%clk 0:01:06]}  Re7 {[%clk 0:00:15]} 34. Qe3 {[%clk 0:00:48]}  Rc7 {[%clk 0:00:14]} 35. h3 {[%clk 0:00:49]}  Bf5 {[%clk 0:00:12]} 36. Ra6 {[%clk 0:00:43]}  Be6 {[%clk 0:00:12]} 37. Bxe6 {[%clk 0:00:41]}  fxe6 {[%clk 0:00:13]} 38. Rxf8+ {[%clk 0:00:39]}  Qxf8 {[%clk 0:00:14]} 39. Rxe6 {[%clk 0:00:39]}  Qa8 {[%clk 0:00:12]} 40. Qf2 {[%clk 0:00:36]}  Qa1+ {[%clk 0:00:11]} 41. Kh2 {[%clk 0:00:37]}  Qa8 {[%clk 0:00:05]} 42. Qf6+ {[%clk 0:00:36]}  Kg8 {[%clk 0:00:05]} 43. Qxe5 {[%clk 0:00:34]}  Rc8 {[%clk 0:00:06]} 44. Re7 {[%clk 0:00:32]}  Qb8 {[%clk 0:00:06]} 45. Qxb8 {[%clk 0:00:29]}  Rxb8 {[%clk 0:00:07]} 46. Rc7 {[%clk 0:00:29]}  Rxb3 {[%clk 0:00:06]} 47. Rxc5 {[%clk 0:00:30]}  Kg7 {[%clk 0:00:06]} 48. d4 {[%clk 0:00:29]}  h5 {[%clk 0:00:06]} 49. Kg3 {[%clk 0:00:28]}  Kf6 {[%clk 0:00:07]} 50. Kf4 {[%clk 0:00:27]}  g5+ {[%clk 0:00:07]} 51. Ke3 {[%clk 0:00:26]}  h4 {[%clk 0:00:07]} 52. Rc6+ {[%clk 0:00:25]}  Kg7 {[%clk 0:00:07]} 53. d5 {[%clk 0:00:23]}  Rb2 {[%clk 0:00:08]} 54. d6 {[%clk 0:00:23]}  Rxg2 {[%clk 0:00:08]} 55. d7 {[%clk 0:00:23]}  Rg3+ {[%clk 0:00:08]} 56. Kd4 {[%clk 0:00:20]}  Rg1 {[%clk 0:00:08]} 57. Ke5 {[%clk 0:00:21]}  Rd1 {[%clk 0:00:08]} 58. Rd6 {[%clk 0:00:21]}  Rf1 {[%clk 0:00:07]} 59. d8=Q {[%clk 0:00:20]}  Rf7 {[%clk 0:00:08]} 60. Qxg5+ {[%clk 0:00:19]}  Kh7 {[%clk 0:00:08]} 61. Rh6# {[%clk 0:00:19]} 1-0

[Event "December 12 Late 2023"]
[Site "https://www.chess.com"]
[Date "2023.12.12"]
[Round "7"]
[White "Harrington, Steve"]
[Black "Khokhlova, Daria"]
[Result "0-1"]
[Board "122"]
[TimeControl "180+1"]
[WhiteFideId "2038730"]
[BlackFideId "24182729"]
[WhiteElo "2126"]
[BlackElo "2278"]
[WhiteTeam "USA"]
[BlackTeam "FID"]
[WhiteClock "0:00:00"]
[BlackClock "0:00:21"]

1. e4 {[%clk 0:03:00]}  c5 {[%clk 0:02:59]} 2. c3 {[%clk 0:03:00]}  Nf6 {[%clk 0:02:58]} 3. e5 {[%clk 0:03:00]}  Nd5 {[%clk 0:02:58]} 4. d4 {[%clk 0:03:01]}  cxd4 {[%clk 0:02:59]} 5. cxd4 {[%clk 0:03:01]}  d6 {[%clk 0:02:59]} 6. exd6 {[%clk 0:03:01]}  e6 {[%clk 0:02:58]} 7. Nc3 {[%clk 0:03:01]}  Nxc3 {[%clk 0:02:57]} 8. bxc3 {[%clk 0:03:02]}  Bxd6 {[%clk 0:02:57]} 9. Nf3 {[%clk 0:03:03]}  O-O {[%clk 0:02:57]} 10. Be2 {[%clk 0:03:03]}  Nc6 {[%clk 0:02:56]} 11. O-O {[%clk 0:03:03]}  b6 {[%clk 0:02:54]} 12. Re1 {[%clk 0:03:03]}  Bb7 {[%clk 0:02:55]} 13. a4 {[%clk 0:03:03]}  Rc8 {[%clk 0:02:53]} 14. Bb2 {[%clk 0:03:02]}  Na5 {[%clk 0:02:53]} 15. Rc1 {[%clk 0:02:52]}  Bd5 {[%clk 0:02:50]} 16. Nd2 {[%clk 0:02:42]}  Bf4 {[%clk 0:02:38]} 17. Rc2 {[%clk 0:02:20]}  Qc7 {[%clk 0:01:57]} 18. Ba6 {[%clk 0:02:13]}  Rcd8 {[%clk 0:01:46]} 19. c4 {[%clk 0:02:07]}  Bxh2+ {[%clk 0:01:43]} 20. Kh1 {[%clk 0:02:07]}  Ba8 {[%clk 0:01:43]} 21. Nf3 {[%clk 0:02:03]}  Bd6 {[%clk 0:01:41]} 22. Qe2 {[%clk 0:01:56]}  Nc6 {[%clk 0:01:28]} 23. c5 {[%clk 0:01:41]}  Nb4 {[%clk 0:01:19]} 24. Rcc1 {[%clk 0:01:25]}  Be7 {[%clk 0:01:08]} 25. cxb6 {[%clk 0:00:53]}  Qxb6 {[%clk 0:01:09]} 26. Bc4 {[%clk 0:00:45]}  Nd5 {[%clk 0:01:02]} 27. Qd2 {[%clk 0:00:34]}  Bb4 {[%clk 0:00:59]} 28. Qc2 {[%clk 0:00:25]}  Bxe1 {[%clk 0:00:57]} 29. Rxe1 {[%clk 0:00:26]}  Nf4 {[%clk 0:00:52]} 30. d5 {[%clk 0:00:19]}  Bxd5 {[%clk 0:00:45]} 31. Qc3 {[%clk 0:00:16]}  f6 {[%clk 0:00:42]} 32. Ba3 {[%clk 0:00:10]}  Rfe8 {[%clk 0:00:33]} 33. Bxd5 {[%clk 0:00:10]}  exd5 {[%clk 0:00:28]} 34. Rd1 {[%clk 0:00:07]}  d4 {[%clk 0:00:24]} 35. Qd2 {[%clk 0:00:07]}  Ne6 {[%clk 0:00:22]} 36. a5 {[%clk 0:00:00]}  Qb5 {[%clk 0:00:21]} 0-1

[Event "December 12 Late 2023"]
[Site "https://www.chess.com"]
[Date "2023.12.12"]
[Round "7"]
[White "Hernandez Jimenez, Alexander Andres"]
[Black "Kniazev, Igor"]
[Result "0-1"]
[Board "123"]
[TimeControl "180+1"]
[WhiteFideId "3900452"]
[BlackFideId "4136349"]
[WhiteElo "2265"]
[BlackElo "2102"]
[WhiteTeam "VEN"]
[BlackTeam "RUS"]
[WhiteClock "0:00:00"]
[BlackClock "0:00:14"]

1. e4 {[%clk 0:02:57]}  e5 {[%clk 0:02:59]} 2. Nf3 {[%clk 0:02:57]}  Nf6 {[%clk 0:02:58]} 3. d4 {[%clk 0:02:55]}  Nxe4 {[%clk 0:02:55]} 4. Bd3 {[%clk 0:02:54]}  d5 {[%clk 0:02:55]} 5. Nxe5 {[%clk 0:02:52]}  Nd7 {[%clk 0:02:54]} 6. Nxd7 {[%clk 0:02:51]}  Bxd7 {[%clk 0:02:53]} 7. O-O {[%clk 0:02:51]}  Be7 {[%clk 0:02:52]} 8. c4 {[%clk 0:02:51]}  c6 {[%clk 0:02:52]} 9. Nc3 {[%clk 0:02:50]}  Nxc3 {[%clk 0:02:51]} 10. bxc3 {[%clk 0:02:50]}  dxc4 {[%clk 0:02:51]} 11. Bxc4 {[%clk 0:02:50]}  O-O {[%clk 0:02:51]} 12. Rb1 {[%clk 0:02:43]}  b5 {[%clk 0:02:50]} 13. Bd3 {[%clk 0:02:42]}  Qa5 {[%clk 0:02:42]} 14. Qh5 {[%clk 0:02:31]}  g6 {[%clk 0:02:41]} 15. Qe2 {[%clk 0:02:31]}  Bf6 {[%clk 0:02:30]} 16. Qc2 {[%clk 0:02:23]}  a6 {[%clk 0:02:19]} 17. Bf4 {[%clk 0:02:21]}  Rfe8 {[%clk 0:02:15]} 18. Bd6 {[%clk 0:02:10]}  Re6 {[%clk 0:02:10]} 19. Bc5 {[%clk 0:02:08]}  Rae8 {[%clk 0:02:05]} 20. h3 {[%clk 0:02:01]}  Qc7 {[%clk 0:01:55]} 21. Qd2 {[%clk 0:01:51]}  Be7 {[%clk 0:01:47]} 22. Bxe7 {[%clk 0:01:45]}  R8xe7 {[%clk 0:01:45]} 23. a4 {[%clk 0:01:42]}  c5 {[%clk 0:01:35]} 24. axb5 {[%clk 0:01:41]}  c4 {[%clk 0:01:35]} 25. b6 {[%clk 0:01:37]}  Rxb6 {[%clk 0:01:26]} 26. Rxb6 {[%clk 0:01:36]}  Qxb6 {[%clk 0:01:25]} 27. Bxc4 {[%clk 0:01:36]}  a5 {[%clk 0:01:17]} 28. Qa2 {[%clk 0:01:31]}  a4 {[%clk 0:01:10]} 29. Rb1 {[%clk 0:01:29]}  Qc7 {[%clk 0:00:53]} 30. Qa3 {[%clk 0:01:12]}  Bf5 {[%clk 0:00:48]} 31. Ra1 {[%clk 0:00:57]}  Rd7 {[%clk 0:00:31]} 32. Qxa4 {[%clk 0:00:57]}  Qf4 {[%clk 0:00:30]} 33. Bf1 {[%clk 0:00:46]}  Kg7 {[%clk 0:00:20]} 34. Qb5 {[%clk 0:00:43]}  Rc7 {[%clk 0:00:19]} 35. Bc4 {[%clk 0:00:30]}  Be4 {[%clk 0:00:18]} 36. Re1 {[%clk 0:00:13]}  Bb7 {[%clk 0:00:18]} 37. Bf1 {[%clk 0:00:06]}  Qf6 {[%clk 0:00:15]} 38. Qe5 {[%clk 0:00:04]}  Rxc3 {[%clk 0:00:15]} 39. Qxf6+ {[%clk 0:00:03]}  Kxf6 {[%clk 0:00:15]} 40. Rd1 {[%clk 0:00:03]}  Bd5 {[%clk 0:00:15]} 41. g3 {[%clk 0:00:03]}  Rc2 {[%clk 0:00:15]} 42. Bg2 {[%clk 0:00:03]}  Ke6 {[%clk 0:00:15]} 43. h4 {[%clk 0:00:03]}  f5 {[%clk 0:00:15]} 44. h5 {[%clk 0:00:02]}  Bxg2 {[%clk 0:00:16]} 45. Kxg2 {[%clk 0:00:02]}  gxh5 {[%clk 0:00:17]} 46. Kf3 {[%clk 0:00:02]}  Kd5 {[%clk 0:00:17]} 47. Rh1 {[%clk 0:00:01]}  Kxd4 {[%clk 0:00:17]} 48. Rxh5 {[%clk 0:00:01]}  Rc5 {[%clk 0:00:17]} 49. Rxh7 {[%clk 0:00:01]}  f4 {[%clk 0:00:17]} 50. Kxf4 {[%clk 0:00:02]}  Rc2 {[%clk 0:00:17]} 51. g4 {[%clk 0:00:02]}  Kd5 {[%clk 0:00:17]} 52. Kg5 {[%clk 0:00:02]}  Ke6 {[%clk 0:00:17]} 53. Rh8 {[%clk 0:00:02]}  Rxf2 {[%clk 0:00:17]} 54. Kg6 {[%clk 0:00:02]}  Ke7 {[%clk 0:00:18]} 55. g5 {[%clk 0:00:03]}  Rg2 {[%clk 0:00:17]} 56. Ra8 {[%clk 0:00:02]}  Rg1 {[%clk 0:00:17]} 57. Kh6 {[%clk 0:00:03]}  Kf7 {[%clk 0:00:15]} 58. Ra7+ {[%clk 0:00:02]}  Kg8 {[%clk 0:00:15]} 59. Kg6 {[%clk 0:00:03]}  Kf8 {[%clk 0:00:16]} 60. Ra8+ {[%clk 0:00:03]}  Ke7 {[%clk 0:00:16]} 61. Kh6 {[%clk 0:00:03]}  Kf7 {[%clk 0:00:15]} 62. Ra7+ {[%clk 0:00:00]}  Kf8 {[%clk 0:00:14]} 0-1

[Event "December 12 Late 2023"]
[Site "https://www.chess.com"]
[Date "2023.12.12"]
[Round "7"]
[White "Oliveira, Tiago Batista"]
[Black "Clarke, Matthew"]
[Result "0-1"]
[Board "124"]
[TimeControl "180+1"]
[WhiteFideId "2108291"]
[BlackFideId "3227804"]
[WhiteElo "2083"]
[BlackElo "2214"]
[WhiteTeam "BRA"]
[BlackTeam "AUS"]
[WhiteClock "0:02:15"]
[BlackClock "0:01:43"]

1. d4 {[%clk 0:03:00]}  d5 {[%clk 0:02:59]} 2. c4 {[%clk 0:03:01]}  e6 {[%clk 0:02:59]} 3. Nf3 {[%clk 0:03:01]}  Nf6 {[%clk 0:02:59]} 4. g3 {[%clk 0:03:01]}  Be7 {[%clk 0:02:59]} 5. Bg2 {[%clk 0:03:01]}  O-O {[%clk 0:03:00]} 6. O-O {[%clk 0:03:01]}  dxc4 {[%clk 0:03:01]} 7. Ne5 {[%clk 0:03:00]}  Nc6 {[%clk 0:02:52]} 8. Bxc6 {[%clk 0:02:58]}  bxc6 {[%clk 0:02:52]} 9. Nxc6 {[%clk 0:02:58]}  Qe8 {[%clk 0:02:53]} 10. Nxe7+ {[%clk 0:02:58]}  Qxe7 {[%clk 0:02:53]} 11. Qa4 {[%clk 0:02:58]}  e5 {[%clk 0:02:34]} 12. Qxc4 {[%clk 0:02:57]}  exd4 {[%clk 0:02:32]} 13. Qxd4 {[%clk 0:02:57]}  Qxe2 {[%clk 0:02:29]} 14. Nc3 {[%clk 0:02:57]}  Qf3 {[%clk 0:02:21]} 15. Qe3 {[%clk 0:02:47]}  Qc6 {[%clk 0:02:20]} 16. f3 {[%clk 0:02:38]}  Re8 {[%clk 0:02:17]} 17. Qf2 {[%clk 0:02:39]}  Ba6 {[%clk 0:01:52]} 18. Rd1 {[%clk 0:02:35]}  Bb7 {[%clk 0:01:46]} 19. Be3 {[%clk 0:02:15]}  Ng4 {[%clk 0:01:43]} 0-1

[Event "December 12 Late 2023"]
[Site "https://www.chess.com"]
[Date "2023.12.12"]
[Round "7"]
[White "Manfroi, Alexander Giannini"]
[Black "Gulamirian, Korun"]
[Result "1-0"]
[Board "125"]
[TimeControl "180+1"]
[WhiteFideId "22739335"]
[BlackFideId "4144899"]
[WhiteElo "2193"]
[BlackElo "2014"]
[WhiteTeam "BRA"]
[BlackTeam "RUS"]
[WhiteClock "0:00:50"]
[BlackClock "0:00:50"]

1. d4 {[%clk 0:03:00]}  Nf6 {[%clk 0:02:58]} 2. Bf4 {[%clk 0:03:01]}  g6 {[%clk 0:02:58]} 3. Nc3 {[%clk 0:03:01]}  Bg7 {[%clk 0:02:58]} 4. e4 {[%clk 0:03:02]}  Nh5 {[%clk 0:02:56]} 5. Bg5 {[%clk 0:03:02]}  O-O {[%clk 0:02:53]} 6. Qd2 {[%clk 0:03:01]}  Re8 {[%clk 0:02:51]} 7. O-O-O {[%clk 0:02:59]}  c6 {[%clk 0:02:50]} 8. g4 {[%clk 0:02:47]}  Nf6 {[%clk 0:02:48]} 9. f3 {[%clk 0:02:44]}  d6 {[%clk 0:02:46]} 10. Bh6 {[%clk 0:02:41]}  Bh8 {[%clk 0:02:45]} 11. h4 {[%clk 0:02:41]}  Nxg4 {[%clk 0:02:36]} 12. fxg4 {[%clk 0:02:39]}  Bxg4 {[%clk 0:02:36]} 13. Be2 {[%clk 0:02:38]}  Qd7 {[%clk 0:02:23]} 14. Qf4 {[%clk 0:02:28]}  Bxe2 {[%clk 0:02:17]} 15. Ngxe2 {[%clk 0:02:19]}  e5 {[%clk 0:02:11]} 16. dxe5 {[%clk 0:01:55]}  Bxe5 {[%clk 0:02:09]} 17. Qg5 {[%clk 0:01:36]}  Qe6 {[%clk 0:02:06]} 18. h5 {[%clk 0:01:15]}  Nd7 {[%clk 0:02:05]} 19. hxg6 {[%clk 0:01:13]}  fxg6 {[%clk 0:02:05]} 20. Rdf1 {[%clk 0:01:03]}  Nf6 {[%clk 0:01:26]} 21. Nf4 {[%clk 0:01:00]}  Bxf4+ {[%clk 0:01:24]} 22. Qxf4 {[%clk 0:01:01]}  Nh5 {[%clk 0:01:07]} 23. Rxh5 {[%clk 0:00:56]}  gxh5 {[%clk 0:01:06]} 24. Rg1+ {[%clk 0:00:52]}  Qg6 {[%clk 0:00:58]} 25. Rxg6+ {[%clk 0:00:50]}  hxg6 {[%clk 0:00:50]} 26. Qf6 {[%clk 0:00:50]} 1-0

[Event "December 12 Late 2023"]
[Site "https://www.chess.com"]
[Date "2023.12.12"]
[Round "7"]
[White "Powell, Paul"]
[Black "Vargas, Mauricio"]
[Result "0-1"]
[Board "126"]
[TimeControl "180+1"]
[WhiteFideId "2005840"]
[BlackFideId "4404572"]
[WhiteElo "2127"]
[BlackElo "1818"]
[WhiteTeam "USA"]
[BlackTeam "COL"]
[WhiteClock "0:00:27"]
[BlackClock "0:00:19"]

1. d4 {[%clk 0:03:00]}  d5 {[%clk 0:02:59]} 2. Nf3 {[%clk 0:03:00]}  Nf6 {[%clk 0:02:50]} 3. Bf4 {[%clk 0:03:00]}  Bg4 {[%clk 0:02:49]} 4. Nbd2 {[%clk 0:02:59]}  Nbd7 {[%clk 0:02:46]} 5. h3 {[%clk 0:02:58]}  Bh5 {[%clk 0:02:46]} 6. c3 {[%clk 0:02:58]}  e6 {[%clk 0:02:42]} 7. g4 {[%clk 0:02:58]}  Bg6 {[%clk 0:02:42]} 8. Ne5 {[%clk 0:02:58]}  Nxe5 {[%clk 0:02:41]} 9. Bxe5 {[%clk 0:02:58]}  Ne4 {[%clk 0:02:25]} 10. Bg2 {[%clk 0:02:52]}  Bd6 {[%clk 0:02:11]} 11. Bxd6 {[%clk 0:02:42]}  Nxd6 {[%clk 0:02:10]} 12. O-O {[%clk 0:02:41]}  h5 {[%clk 0:02:07]} 13. f3 {[%clk 0:02:37]}  hxg4 {[%clk 0:02:06]} 14. fxg4 {[%clk 0:02:37]}  Qh4 {[%clk 0:02:04]} 15. Qe1 {[%clk 0:02:33]}  Qh6 {[%clk 0:01:59]} 16. Nf3 {[%clk 0:02:28]}  Qe3+ {[%clk 0:01:54]} 17. Qf2 {[%clk 0:02:27]}  Qf4 {[%clk 0:01:46]} 18. Ne5 {[%clk 0:02:21]}  Qxf2+ {[%clk 0:01:39]} 19. Rxf2 {[%clk 0:02:20]}  O-O {[%clk 0:01:29]} 20. Nxg6 {[%clk 0:01:24]}  fxg6 {[%clk 0:01:28]} 21. b3 {[%clk 0:01:24]}  Rxf2 {[%clk 0:01:23]} 22. Kxf2 {[%clk 0:01:24]}  Ne4+ {[%clk 0:01:23]} 23. Bxe4 {[%clk 0:01:23]}  dxe4 {[%clk 0:01:22]} 24. Ke3 {[%clk 0:01:19]}  Kf7 {[%clk 0:01:17]} 25. Rf1+ {[%clk 0:01:15]}  Ke7 {[%clk 0:01:17]} 26. Kxe4 {[%clk 0:01:15]}  g5 {[%clk 0:01:16]} 27. Rf3 {[%clk 0:01:11]}  Rc8 {[%clk 0:01:10]} 28. c4 {[%clk 0:01:09]}  c5 {[%clk 0:01:08]} 29. e3 {[%clk 0:01:08]}  b6 {[%clk 0:00:57]} 30. Rf2 {[%clk 0:01:05]}  Rh8 {[%clk 0:00:52]} 31. Rf3 {[%clk 0:01:04]}  Rc8 {[%clk 0:00:49]} 32. Ke5 {[%clk 0:01:02]}  cxd4 {[%clk 0:00:33]} 33. exd4 {[%clk 0:01:01]}  Rd8 {[%clk 0:00:30]} 34. Rd3 {[%clk 0:00:58]}  Rf8 {[%clk 0:00:22]} 35. a3 {[%clk 0:00:54]}  Rf2 {[%clk 0:00:19]} 36. b4 {[%clk 0:00:27]}  Re2+ {[%clk 0:00:19]} 0-1